bitfinex/quotes_BTCUSD_20240815
["timestamp","ask_amount","ask_price","bid_price","bid_amount"]
[1723704017803,0.72286126,58234.0,58233.0,0.0019031]
[1723704018154,0.72586126,58234.0,58233.0,0.0019031]
[1723704019003,0.96627026,58234.0,58233.0,0.0019031]
[1723704019822,0.674813,58234.0,58233.0,0.0019031]
[1723704020533,0.915222,58234.0,58233.0,0.0019031]
[1723704021213,2.79975916,58234.0,58233.0,0.0019031]
[1723704021376,2.91254751,58234.0,58233.0,0.0019031]
[1723704021583,0.841561,58225.0,58224.0,0.0009031]
[1723704021781,2.36028792,58225.0,58224.0,0.0009031]
[1723704022214,1.57028792,58225.0,58224.0,0.0009031]
[1723704022423,1.44270497,58225.0,58224.0,0.0009031]
[1723704023031,1.61425951,58225.0,58224.0,0.0009031]
[1723704023380,1.71926281,58225.0,58224.0,0.0019031]
[1723704023583,1.98528846,58225.0,58224.0,0.0019031]
[1723704024487,1.85770551,58225.0,58224.0,0.0019031]
[1723704024996,2.65770551,58225.0,58224.0,0.0019031]
[1723704025186,4.2198659,58225.0,58224.0,0.0029031]
[1723704025413,4.44339645,58225.0,58207.0,0.0009042]
[1723704025613,1.129106,58208.0,58207.0,0.0009042]
[1723704026121,1.18004204,58208.0,58207.0,0.0009042]
[1723704026355,1.18000096,58208.0,58207.0,0.0009042]
[1723704026545,1.61758976,58208.0,58207.0,0.0009042]
[1723704026744,2.10969957,58208.0,58207.0,0.0009042]
[1723704026900,1.86918357,58208.0,58207.0,0.0009042]
[1723704027101,1.76729928,58208.0,58207.0,0.0009042]
[1723704027310,1.55349062,58208.0,58207.0,0.0009042]
[1723704027900,1.79400662,58208.0,58207.0,0.0009042]
[1723704028104,2.59300662,58208.0,58207.0,0.0019042]
[1723704028304,3.72744547,58208.0,58207.0,0.0019042]
[1723704028506,3.89872101,58208.0,58207.0,0.0019042]
[1723704028706,4.23639194,58208.0,58207.0,0.0009042]
[1723704028960,4.25039194,58208.0,58207.0,0.0019042]
[1723704029181,4.14303657,58208.0,58207.0,0.0029042]
[1723704029355,4.26994296,58208.0,58207.0,0.0019042]
[1723704029515,4.24594296,58208.0,58207.0,0.0009042]
[1723704029716,4.25994296,58208.0,58207.0,0.0029042]
[1723704029920,4.26994296,58208.0,58207.0,0.0029042]
[1723704030129,4.24455718,58208.0,58207.0,0.0029042]
[1723704030327,3.92354639,58208.0,58207.0,0.0019042]
[1723704031425,3.89814994,58208.0,58207.0,0.0019042]
[1723704031645,0.601395,58198.0,58197.0,0.0009042]
[1723704031859,1.06464954,58198.0,58197.0,0.0009042]
[1723704032075,1.30520754,58198.0,58197.0,0.0009042]
[1723704032947,1.31320754,58198.0,58197.0,0.0009042]
[1723704033347,1.32120754,58198.0,58197.0,0.0019042]
[1723704034747,1.6989871,58198.0,58197.0,0.0019042]
[1723704034985,2.7295451,58198.0,58197.0,0.0019042]
[1723704035233,4.31381749,58198.0,58197.0,2e-07]
[1723704035421,1.141084,58182.0,58181.0,0.0009042]
[1723704035600,2.45364694,58182.0,58181.0,0.0009042]
[1723704035816,2.69427094,58182.0,58181.0,0.0009042]
[1723704036425,2.95789494,58182.0,58181.0,0.0009042]
[1723704036683,2.95789494,58182.0,58181.0,0.0019042]
[1723704036684,3.06889494,58182.0,58181.0,0.0019042]
[1723704036883,3.06889494,58182.0,58178.0,4e-07]
[1723704036884,1.615498,58179.0,58178.0,4e-07]
[1723704037083,2.87160708,58179.0,58178.0,4e-07]
[1723704037782,2.88160708,58179.0,58178.0,4e-07]
[1723704037975,2.87160708,58179.0,58178.0,4e-07]
[1723704038200,2.63097108,58179.0,58178.0,4e-07]
[1723704038774,2.64497108,58179.0,58178.0,4e-07]
[1723704039201,2.64097108,58179.0,58178.0,4e-07]
[1723704039340,2.88160708,58179.0,58178.0,4e-07]
[1723704039556,2.88160708,58179.0,58177.0,4e-07]
[1723704039557,1.14714,58178.0,58177.0,4e-07]
[1723704039783,2.62388908,58178.0,58177.0,4e-07]
[1723704039981,2.86452908,58178.0,58177.0,4e-07]
[1723704040192,1.137315,58166.0,58155.0,0.51466362]
[1723704040404,2.67645954,58166.0,58155.0,0.51466362]
[1723704040608,1.88645954,58166.0,58155.0,0.51466362]
[1723704040835,2.05801408,58166.0,58153.0,0.0016]
[1723704041650,0.842471,58162.0,58153.0,0.0016]
[1723704041883,1.01402554,58162.0,58153.0,0.0016]
[1723704043032,1.02802554,58162.0,58161.0,0.0019042]
[1723704043239,1.04202554,58162.0,58161.0,0.0019042]
[1723704043441,1.36748008,58162.0,58161.0,0.0019042]
[1723704044378,1.37768036,58162.0,58161.0,0.0019042]
[1723704044793,2.40838636,58162.0,58161.0,0.0019042]
[1723704044999,4.09270675,58162.0,58161.0,0.0019042]
[1723704045233,0.842516,58159.0,58153.0,0.0016]
[1723704045514,2.76554408,58159.0,58153.0,0.0016]
[1723704045759,1.08333,58154.0,58153.0,0.0016]
[1723704045984,3.58789893,58154.0,58153.0,0.0016]
[1723704046922,3.60189893,58154.0,58153.0,0.0026]
[1723704047794,3.61589893,58154.0,58153.0,0.0026]
[1723704048121,3.51238049,58154.0,58153.0,0.0016]
[1723704048394,3.73912049,58154.0,58153.0,0.0016]
[1723704048588,3.75312049,58154.0,58153.0,0.0016]
[1723704048789,3.76212049,58154.0,58153.0,0.0016]
[1723704049219,3.77612049,58154.0,58153.0,0.0016]
[1723704050050,3.78633138,58154.0,58153.0,0.0016]
[1723704050322,3.76333138,58154.0,58153.0,0.0016]
[1723704051895,0.120384,58147.0,58146.0,0.0009053]
[1723704052107,1.56347654,58147.0,58146.0,0.0009053]
[1723704052295,1.80424554,58147.0,58146.0,0.0009053]
[1723704053315,1.01424554,58147.0,58146.0,0.0009053]
[1723704053737,1.02824554,58147.0,58146.0,0.0009053]
[1723704053937,1.83224554,58147.0,58146.0,0.0009053]
[1723704054940,2.00380008,58147.0,58146.0,0.0009053]
[1723704055141,1.83224554,58147.0,58146.0,0.0009053]
[1723704055360,1.80424554,58147.0,58146.0,0.0009053]
[1723704055757,1.83224554,58147.0,58146.0,0.0009053]
[1723704055990,1.81824554,58147.0,58146.0,0.0009053]
[1723704057435,1.02824554,58147.0,58146.0,0.0009053]
[1723704057776,1.75424554,58147.0,58146.0,0.0009053]
[1723704058172,0.375153,58147.0,58146.0,0.0009053]
[1723704058456,0.014,58147.0,58146.0,0.1707053]
[1723704058663,0.014,58147.0,58146.0,0.2910913]
[1723704058664,0.028,58147.0,58146.0,0.2910913]
[1723704058869,0.014,58147.0,58146.0,0.1707053]
[1723704059067,0.240753,58151.0,58146.0,0.1707053]
[1723704059269,0.014,58147.0,58146.0,0.5318603]
[1723704059470,0.014,58147.0,58146.0,0.9032333]
[1723704059691,0.120366,58156.0,58151.0,0.274674]
[1723704059886,0.120372,58153.0,58152.0,0.1306]
[1723704060092,0.4764,58157.0,58152.0,0.1306]
[1723704060297,0.0009053,58158.0,58153.0,0.1543]
[1723704060511,0.0009053,58158.0,58155.0,0.120367]
[1723704060712,0.0009053,58158.0,58156.0,0.156]
[1723704060887,0.1212663,58158.0,58156.0,0.156]
[1723704061300,0.0009053,58158.0,58156.0,0.276365]
[1723704061498,0.0009053,58158.0,58157.0,0.1554]
[1723704061682,0.0149053,58158.0,58157.0,0.275763]
[1723704061895,0.0149053,58158.0,58157.0,0.893917]
[1723704062097,0.0009053,58158.0,58157.0,0.893917]
[1723704062638,0.0149053,58158.0,58157.0,0.893917]
[1723704063000,0.0149053,58158.0,58157.0,1.134644]
[1723704063408,0.0169053,58158.0,58157.0,0.893917]
[1723704063608,0.0149053,58158.0,58157.0,0.893917]
[1723704063814,0.0009053,58158.0,58157.0,0.893917]
[1723704064273,0.0049053,58158.0,58157.0,0.893917]
[1723704064430,0.0049053,58158.0,58157.0,0.65319]
[1723704064822,0.0009053,58158.0,58157.0,0.65319]
[1723704065037,0.0029053,58158.0,58157.0,0.893917]
[1723704065747,0.0029053,58158.0,58157.0,0.65319]
[1723704066588,0.0029053,58158.0,58152.0,0.1237]
[1723704066815,0.120369,58155.0,58152.0,0.1237]
[1723704067030,0.120372,58153.0,58152.0,0.1237]
[1723704067452,0.2416293,58158.0,58152.0,0.1237]
[1723704067900,0.0089053,58158.0,58153.0,0.240743]
[1723704068075,0.0089053,58158.0,58154.0,0.120368]
[1723704068312,0.0009053,58158.0,58154.0,0.120368]
[1723704068550,0.0009053,58158.0,58153.0,0.240742]
[1723704068551,0.0009053,58158.0,58157.0,0.36109]
[1723704068753,0.1292663,58158.0,58157.0,0.1683]
[1723704069164,0.0089053,58158.0,58157.0,0.1683]
[1723704070122,0.0009053,58158.0,58157.0,0.1683]
[1723704070287,0.0089053,58158.0,58157.0,0.52939]
[1723704070707,0.0149053,58158.0,58157.0,0.52939]
[1723704070917,0.0069053,58158.0,58157.0,0.52939]
[1723704071134,0.0149053,58158.0,58157.0,0.52939]
[1723704071472,0.0089053,58158.0,58157.0,0.52939]
[1723704071836,0.0149053,58158.0,58157.0,0.52939]
[1723704072222,0.0149053,58158.0,58157.0,0.770117]
[1723704072656,0.0149053,58158.0,58157.0,0.52939]
[1723704073033,0.0149053,58158.0,58157.0,0.65529]
[1723704073277,0.0149053,58158.0,58157.0,0.414563]
[1723704073452,0.0149053,58158.0,58153.0,0.410965]
[1723704073687,0.1292683,58158.0,58153.0,0.170223]
[1723704073903,0.60185,58154.0,58153.0,0.000823]
[1723704074197,0.36111,58154.0,58153.0,0.000823]
[1723704074616,0.60185,58154.0,58153.0,0.000823]
[1723704074849,0.76615,58154.0,58153.0,0.000823]
[1723704075695,0.76815,58154.0,58153.0,0.000823]
[1723704076110,0.60385,58154.0,58153.0,0.000823]
[1723704076307,0.002,58154.0,58153.0,0.170123]
[1723704076481,0.002,58154.0,58153.0,0.531239]
[1723704076681,0.005,58154.0,58153.0,0.665439]
[1723704077307,0.002,58154.0,58153.0,0.424695]
[1723704077507,0.0009053,58158.0,58154.0,0.120368]
[1723704077685,0.120364,58157.0,58153.0,0.305323]
[1723704078060,0.0009053,58158.0,58153.0,0.001823]
[1723704078278,0.36111,58154.0,58153.0,0.001823]
[1723704078472,0.12037,58154.0,58153.0,0.001823]
[1723704078667,0.12037,58154.0,58153.0,0.000823]
[1723704078837,0.60185,58154.0,58153.0,0.000823]
[1723704079039,0.36211,58154.0,58153.0,0.000823]
[1723704079815,0.60285,58154.0,58153.0,0.000823]
[1723704080220,0.60185,58154.0,58153.0,0.000823]
[1723704080651,0.60685,58154.0,58153.0,0.000823]
[1723704080852,0.60485,58154.0,58153.0,0.000823]
[1723704081058,0.60185,58154.0,58153.0,0.000823]
[1723704081292,0.60385,58154.0,58153.0,0.000823]
[1723704081643,0.60685,58154.0,58153.0,0.000823]
[1723704082079,1.9079936,58154.0,58153.0,0.000823]
[1723704082253,2.1864936,58154.0,58153.0,0.000823]
[1723704082484,2.26250203,58154.0,58153.0,0.000823]
[1723704082659,2.1864936,58154.0,58153.0,0.000823]
[1723704082865,1.005691,58147.0,58146.0,0.0009053]
[1723704082994,1.96724554,58147.0,58146.0,0.0009053]
[1723704084588,1.97724554,58147.0,58146.0,0.0009053]
[1723704085169,1.18724554,58147.0,58146.0,0.0009053]
[1723704085771,1.19824554,58147.0,58146.0,0.0009053]
[1723704086373,1.34096376,58147.0,58146.0,0.0009053]
[1723704086573,2.12096376,58147.0,58146.0,0.0009053]
[1723704086808,2.24686376,58147.0,58146.0,0.0009053]
[1723704087121,2.10414554,58147.0,58146.0,0.0009053]
[1723704088706,0.382153,58147.0,58146.0,0.0009053]
[1723704089890,0.622922,58147.0,58146.0,0.0009053]
[1723704090083,0.96417654,58147.0,58146.0,0.0009053]
[1723704090199,1.95494554,58147.0,58146.0,0.0009053]
[1723704091812,1.71417654,58147.0,58146.0,0.0009053]
[1723704092290,1.95494554,58147.0,58146.0,0.0009053]
[1723704092900,2.36726908,58147.0,58146.0,0.0009053]
[1723704093086,0.1327,58142.0,58131.0,0.0002]
[1723704093278,0.6490084,58132.0,58131.0,0.0002]
[1723704093486,2.11704803,58132.0,58131.0,0.0002]
[1723704093651,2.35787903,58132.0,58131.0,0.0002]
[1723704093883,2.6659002,58132.0,58131.0,0.0002]
[1723704094088,2.59871003,58132.0,58131.0,0.0002]
[1723704094404,2.6658999,58132.0,58131.0,0.0002]
[1723704094750,2.4390689,58132.0,58131.0,0.0002]
[1723704094929,2.4250689,58132.0,58131.0,0.0002]
[1723704095135,2.4530689,58132.0,58131.0,0.0002]
[1723704095468,2.64971003,58132.0,58131.0,0.0002]
[1723704095668,2.74971003,58132.0,58131.0,0.0002]
[1723704096528,2.74571003,58132.0,58131.0,0.0002]
[1723704096712,2.72171003,58132.0,58131.0,0.0002]
[1723704096915,2.73571003,58132.0,58131.0,0.0002]
[1723704097135,2.76009994,58132.0,58131.0,0.0002]
[1723704097335,2.73209994,58132.0,58131.0,0.0002]
[1723704097618,2.74609994,58132.0,58131.0,0.0002]
[1723704097845,2.76009994,58132.0,58131.0,0.0002]
[1723704098024,2.72309994,58132.0,58131.0,0.0002]
[1723704098398,2.73709994,58132.0,58131.0,0.0002]
[1723704099251,2.86154967,58132.0,58131.0,0.0002]
[1723704099429,4.00081433,58132.0,58131.0,1e-06]
[1723704099626,4.06826406,58132.0,58131.0,1e-06]
[1723704099831,4.32909506,58132.0,58131.0,1e-06]
[1723704100031,4.29509506,58132.0,58131.0,1e-06]
[1723704100237,4.21364533,58132.0,58131.0,1e-06]
[1723704100412,4.34305485,58132.0,58131.0,1e-06]
[1723704100613,4.32905485,58132.0,58131.0,1e-06]
[1723704101039,4.35450403,58132.0,58131.0,1e-06]
[1723704101270,1.36326,58120.0,58119.0,0.00823]
[1723704101457,3.90875493,58120.0,58119.0,0.00823]
[1723704102024,4.14963493,58120.0,58119.0,0.00823]
[1723704102225,1.238313,58112.0,58111.0,0.0002]
[1723704102426,2.47676754,58112.0,58111.0,0.0002]
[1723704103071,1.084149,58110.0,58109.0,0.01155911]
[1723704103273,2.74748008,58110.0,58109.0,1.1e-07]
[1723704103475,2.87048008,58110.0,58109.0,1.1e-07]
[1723704104513,2.61955808,58110.0,58109.0,1.1e-07]
[1723704104715,2.62970564,58110.0,58109.0,1.1e-07]
[1723704104965,2.65770564,58110.0,58109.0,1.1e-07]
[1723704105113,2.4631511,58110.0,58109.0,1.1e-07]
[1723704105291,1.3071291,58110.0,58109.0,1.1e-07]
[1723704105491,2.08698154,58110.0,58109.0,1.1e-07]
[1723704106096,2.32790354,58110.0,58109.0,1.1e-07]
[1723704106291,2.35090354,58110.0,58109.0,1.1e-07]
[1723704106499,2.52245808,58110.0,58109.0,1.1e-07]
[1723704106959,1.53790354,58110.0,58109.0,1.1e-07]
[1723704107166,0.80185954,58110.0,58109.0,1.1e-07]
[1723704107333,0.56093754,58110.0,58109.0,1.1e-07]
[1723704107554,0.80185954,58110.0,58109.0,1.1e-07]
[1723704107755,0.80185954,58110.0,58109.0,0.16250011]
[1723704107958,0.56093754,58110.0,58109.0,0.16250011]
[1723704108157,0.78785954,58110.0,58109.0,0.16250011]
[1723704108514,0.2369,58118.0,58109.0,0.16250011]
[1723704108515,0.240889,58118.0,58112.0,0.120455]
[1723704108718,1.21071439,58126.0,58115.0,0.12045]
[1723704108952,1.21071439,58126.0,58114.0,0.1574]
[1723704108953,0.240874,58122.0,58114.0,0.1574]
[1723704109166,0.120447,58117.0,58114.0,0.1574]
[1723704109340,0.120443,58119.0,58116.0,0.1577]
[1723704109510,1.21071439,58126.0,58116.0,0.1577]
[1723704109700,0.240856,58126.0,58123.0,0.1272]
[1723704109924,0.120432,58124.0,58123.0,0.1272]
[1723704110511,0.4764,58128.0,58123.0,0.1272]
[1723704110715,0.12043,58125.0,58123.0,0.1272]
[1723704111349,0.4764,58137.0,58128.0,0.1233]
[1723704111525,0.361264,58129.0,58128.0,0.1233]
[1723704111725,0.120421,58129.0,58128.0,0.1233]
[1723704112126,0.120418,58131.0,58128.0,0.1233]
[1723704112330,0.41237154,58136.0,58128.0,0.1233]
[1723704112331,0.240828,58133.0,58128.0,0.1233]
[1723704112526,0.120418,58131.0,58128.0,0.1233]
[1723704112752,0.014,58129.0,58128.0,0.1233]
[1723704112924,0.134421,58129.0,58128.0,0.1233]
[1723704113533,0.014,58129.0,58128.0,0.1233]
[1723704113937,0.134421,58129.0,58128.0,0.1233]
[1723704114110,0.120421,58129.0,58128.0,0.1233]
[1723704114311,0.014,58131.0,58128.0,0.1233]
[1723704114514,0.01,58129.0,58128.0,0.1233]
[1723704114764,0.130421,58129.0,58128.0,0.1233]
[1723704114957,0.01,58129.0,58128.0,0.1233]
[1723704115161,0.01,58129.0,58128.0,0.48457]
[1723704115361,0.717189,58143.0,58130.0,0.120418]
[1723704115362,0.120408,58136.0,58130.0,0.120418]
[1723704115536,0.013,58131.0,58129.0,0.1547]
[1723704116253,0.013,58131.0,58130.0,0.120419]
[1723704116454,0.013,58131.0,58130.0,0.361258]
[1723704116661,0.013,58131.0,58130.0,0.602097]
[1723704116830,0.120404,58138.0,58132.0,0.120413]
[1723704117039,0.120399,58140.0,58133.0,0.1595]
[1723704117243,0.4764,58143.0,58135.0,0.423409]
[1723704117244,0.120401,58139.0,58135.0,0.423409]
[1723704118052,0.008,58138.0,58136.0,0.120406]
[1723704118310,0.008,58138.0,58137.0,0.120405]
[1723704118520,0.008,58138.0,58137.0,0.771225]
[1723704118726,0.4764,58143.0,58142.0,0.289594]
[1723704118948,0.240749,58152.0,58144.0,0.240781]
[1723704119148,0.240749,58152.0,58143.0,0.1338]
[1723704119357,0.120387,58146.0,58143.0,0.1338]
[1723704119762,0.240749,58152.0,58143.0,0.1338]
[1723704119763,0.12039,58145.0,58143.0,0.1338]
[1723704119966,0.12039,58144.0,58143.0,0.1338]
[1723704120343,0.120387,58146.0,58143.0,0.1338]
[1723704120548,0.120388,58146.0,58143.0,0.1338]
[1723704121129,0.254749,58152.0,58143.0,0.374584]
[1723704121369,0.12038,58149.0,58144.0,0.361169]
[1723704121535,0.120377,58151.0,58144.0,0.24078]
[1723704121736,0.254749,58152.0,58145.0,0.120388]
[1723704121737,0.120378,58150.0,58145.0,0.120388]
[1723704122108,0.007,58146.0,58145.0,0.361165]
[1723704122315,0.007,58146.0,58145.0,0.758942]
[1723704122520,0.011,58152.0,58147.0,0.240768]
[1723704122721,0.011,58152.0,58149.0,0.12038]
[1723704122923,0.011,58151.0,58149.0,0.12038]
[1723704123333,0.131376,58151.0,58147.0,0.120384]
[1723704123539,0.011,58151.0,58145.0,0.157]
[1723704123744,0.011,58151.0,58143.0,0.1338]
[1723704123745,0.120389,58145.0,58143.0,0.1338]
[1723704124188,0.12039,58144.0,58143.0,0.1338]
[1723704124924,0.120389,58145.0,58143.0,0.1338]
[1723704125241,0.120388,58145.0,58143.0,0.1338]
[1723704125514,0.004,58144.0,58143.0,0.1338]
[1723704126045,0.001,58144.0,58143.0,0.412592]
[1723704126224,0.001,58144.0,58143.0,0.894162]
[1723704126736,0.691,58144.0,58143.0,0.894162]
[1723704126934,0.69,58144.0,58143.0,0.894162]
[1723704127585,0.69,58144.0,58143.0,1.134947]
[1723704128042,0.691,58144.0,58143.0,1.134947]
[1723704128266,0.693,58144.0,58143.0,1.134947]
[1723704128712,0.693,58144.0,58143.0,1.136947]
[1723704128995,0.69,58144.0,58143.0,1.134947]
[1723704129118,0.69,58144.0,58143.0,1.136947]
[1723704129601,0.69,58144.0,58143.0,0.896162]
[1723704129716,0.69,58144.0,58143.0,0.655377]
[1723704129923,0.69,58144.0,58143.0,0.1604]
[1723704130123,0.81039,58144.0,58143.0,0.1604]
[1723704130371,0.69,58144.0,58143.0,0.1604]
[1723704130580,0.69,58144.0,58143.0,0.278792]
[1723704130777,0.69,58144.0,58143.0,0.1584]
[1723704130986,0.691,58144.0,58143.0,0.1584]
[1723704131292,0.691,58144.0,58143.0,0.1604]
[1723704131524,0.69,58144.0,58143.0,0.1584]
[1723704131961,0.707,58144.0,58143.0,0.1584]
[1723704132074,0.699,58144.0,58143.0,0.1584]
[1723704132281,0.69,58144.0,58143.0,0.1584]
[1723704132496,0.698,58144.0,58143.0,0.278792]
[1723704132701,0.698,58144.0,58143.0,0.519577]
[1723704133125,0.698,58144.0,58143.0,0.278792]
[1723704133832,0.7079064,58144.0,58143.0,0.278792]
[1723704134045,0.7079064,58144.0,58143.0,0.519577]
[1723704134230,0.6989064,58144.0,58143.0,0.519577]
[1723704134609,0.6969064,58144.0,58143.0,0.519577]
[1723704134823,0.7009064,58144.0,58143.0,0.760362]
[1723704135206,0.7009064,58144.0,58143.0,0.886562]
[1723704136449,0.7009064,58144.0,58143.0,1.127347]
[1723704138008,0.6949064,58144.0,58143.0,0.886562]
[1723704138406,0.6949064,58144.0,58143.0,0.888562]
[1723704138613,0.6909064,58144.0,58143.0,0.647777]
[1723704139028,0.6909064,58144.0,58143.0,0.406992]
[1723704139230,0.6909064,58144.0,58143.0,0.404992]
[1723704139483,0.6909064,58144.0,58143.0,0.406992]
[1723704139690,0.6909064,58144.0,58143.0,0.647777]
[1723704140125,0.6909064,58144.0,58143.0,0.888562]
[1723704140328,0.6929064,58144.0,58143.0,1.129347]
[1723704140737,0.6929064,58144.0,58143.0,1.127347]
[1723704140940,0.6909064,58144.0,58143.0,1.127347]
[1723704141167,0.6929064,58144.0,58143.0,1.54168654]
[1723704141375,0.6929064,58144.0,58143.0,1.66268654]
[1723704141843,0.6909064,58144.0,58143.0,1.66468654]
[1723704141955,0.6909064,58144.0,58143.0,1.66568654]
[1723704142160,0.6909064,58144.0,58143.0,1.66368654]
[1723704142412,0.6909064,58144.0,58143.0,1.66568654]
[1723704142841,0.6909064,58144.0,58143.0,1.66368654]
[1723704144030,0.6909064,58144.0,58143.0,1.66268654]
[1723704144270,0.6919064,58144.0,58143.0,1.66468654]
[1723704144476,0.6929064,58144.0,58143.0,1.66868654]
[1723704145511,0.6909064,58144.0,58143.0,1.66268654]
[1723704145955,0.6929064,58144.0,58143.0,1.66868654]
[1723704146177,0.6919064,58144.0,58143.0,1.66668654]
[1723704147368,0.6909064,58144.0,58143.0,1.66268654]
[1723704147584,0.6919064,58144.0,58143.0,1.66468654]
[1723704147789,0.6919064,58144.0,58143.0,1.66868654]
[1723704147790,0.6929064,58144.0,58143.0,1.66868654]
[1723704148338,0.6919064,58144.0,58143.0,1.66468654]
[1723704148536,0.6919064,58144.0,58143.0,1.66668654]
[1723704148664,0.6919064,58144.0,58143.0,1.66868654]
[1723704148665,0.6929064,58144.0,58143.0,1.66868654]
[1723704148872,0.48573063,58144.0,58143.0,2.25225654]
[1723704149177,0.0009064,58149.0,58148.0,1.409568]
[1723704149354,0.00906401,58169.0,58168.0,0.240682]
[1723704149569,0.00906401,58169.0,58168.0,1.16295954]
[1723704149888,0.00906401,58169.0,58168.0,1.40364154]
[1723704150153,0.00906401,58169.0,58168.0,1.42664154]
[1723704151507,0.51466362,58187.0,58186.0,0.120303]
[1723704151924,0.00906401,58188.0,58186.0,0.120303]
[1723704152347,0.00906401,58188.0,58187.0,0.120301]
[1723704152547,0.00906401,58188.0,58187.0,0.360904]
[1723704152718,0.00906401,58188.0,58187.0,0.120301]
[1723704152924,0.00906401,58188.0,58183.0,0.240618]
[1723704153194,0.00906401,58188.0,58185.0,0.120305]
[1723704153394,0.00906401,58188.0,58183.0,0.240618]
[1723704153538,0.00906401,58188.0,58187.0,0.120301]
[1723704153740,0.00906401,58188.0,58187.0,0.360904]
[1723704153950,0.00906401,58188.0,58187.0,0.601507]
[1723704154756,0.00906401,58188.0,58187.0,0.360904]
[1723704155288,0.02006401,58188.0,58187.0,0.361904]
[1723704155506,0.01506401,58188.0,58187.0,0.361904]
[1723704155710,0.01506401,58188.0,58187.0,0.121301]
[1723704155913,0.01906401,58188.0,58187.0,0.121301]
[1723704156115,0.01906401,58188.0,58187.0,0.361904]
[1723704156479,0.01906401,58188.0,58187.0,0.602507]
[1723704156680,0.01906401,58188.0,58187.0,0.361904]
[1723704156874,0.01906401,58188.0,58187.0,0.121301]
[1723704157679,0.01906401,58188.0,58187.0,0.361904]
[1723704157961,0.01906401,58188.0,58187.0,0.602507]
[1723704158625,0.01906401,58188.0,58187.0,1.14916454]
[1723704158825,0.01906401,58188.0,58187.0,1.30616454]
[1723704159889,0.01906401,58188.0,58187.0,0.602507]
[1723704160345,0.01906401,58188.0,58187.0,0.001]
[1723704160545,0.14096401,58188.0,58181.0,0.240626]
[1723704160764,0.14096401,58188.0,58182.0,0.340623]
[1723704160916,0.26326301,58188.0,58187.0,0.001]
[1723704161116,0.14296401,58188.0,58187.0,0.005]
[1723704161320,0.14296401,58188.0,58187.0,0.004]
[1723704161321,0.13696401,58188.0,58187.0,0.004]
[1723704161541,0.13696401,58188.0,58184.0,0.120306]
[1723704161845,0.13696401,58188.0,58187.0,0.120301]
[1723704162018,0.13696401,58188.0,58187.0,0.360904]
[1723704162019,0.00906401,58188.0,58187.0,0.360904]
[1723704162458,0.00906401,58188.0,58187.0,1.54606754]
[1723704162635,0.00906401,58188.0,58187.0,1.66906754]
[1723704163286,0.00906401,58188.0,58187.0,1.67921669]
[1723704164119,0.00906401,58188.0,58187.0,1.43661369]
[1723704164322,0.00906401,58188.0,58187.0,1.43861369]
[1723704164477,0.00906401,58188.0,58187.0,1.44767769]
[1723704164821,0.00906401,58188.0,58187.0,1.68828069]
[1723704165042,0.01006401,58188.0,58187.0,1.70228069]
[1723704165231,0.01106401,58188.0,58187.0,1.71628069]
[1723704165449,0.01006401,58188.0,58187.0,1.70228069]
[1723704165615,0.01006401,58188.0,58187.0,1.94288369]
[1723704165779,0.01106401,58188.0,58187.0,1.71628069]
[1723704165982,0.01006401,58188.0,58187.0,1.70228069]
[1723704166180,0.01006401,58188.0,58187.0,1.70028069]
[1723704166389,0.01006401,58188.0,58187.0,1.70228069]
[1723704166822,0.01006401,58188.0,58187.0,1.80228069]
[1723704167038,1e-08,58188.0,58187.0,1.80028069]
[1723704167471,0.0002,58199.0,58197.0,1.143967]
[1723704167647,0.0002,58199.0,58197.0,1.43852154]
[1723704168702,0.0002,58199.0,58197.0,1.67908354]
[1723704169376,0.01006401,58198.0,58197.0,1.69008354]
[1723704169709,0.01006401,58198.0,58197.0,1.69208354]
[1723704169839,0.01006401,58198.0,58197.0,1.70227994]
[1723704170440,0.01006401,58198.0,58197.0,1.70027994]
[1723704170666,0.01006401,58198.0,58197.0,1.70227994]
[1723704171273,0.01006401,58198.0,58197.0,1.94284194]
[1723704171473,0.00249462,58198.0,58197.0,1.71127994]
[1723704171673,0.00149462,58198.0,58197.0,1.70027994]
[1723704171993,0.00149462,58198.0,58197.0,1.70527994]
[1723704172351,0.00249462,58198.0,58197.0,1.71927994]
[1723704172695,0.00249462,58198.0,58197.0,1.70527994]
[1723704172916,0.00049462,58198.0,58197.0,1.69127994]
[1723704173453,0.00049462,58198.0,58197.0,1.68927994]
[1723704174312,0.00049462,58198.0,58197.0,1.71727994]
[1723704174510,0.00049462,58198.0,58197.0,1.70327994]
[1723704174735,0.00049462,58198.0,58197.0,1.68927994]
[1723704174942,0.00049462,58198.0,58197.0,1.70327994]
[1723704175773,0.00049462,58198.0,58197.0,1.71327994]
[1723704176200,0.00049462,58198.0,58197.0,1.68927994]
[1723704177745,0.00049462,58198.0,58197.0,1.70827994]
[1723704178155,0.00049462,58198.0,58197.0,1.68927994]
[1723704178361,0.00049462,58198.0,58197.0,1.70327994]
[1723704178608,0.00049462,58198.0,58197.0,1.71727994]
[1723704179157,0.00049462,58198.0,58197.0,1.70327994]
[1723704179697,0.00049462,58198.0,58197.0,1.71727994]
[1723704182022,0.00049462,58198.0,58197.0,1.71927994]
[1723704182227,0.00049462,58198.0,58197.0,1.71727994]
[1723704182789,0.00049462,58198.0,58197.0,1.71927994]
[1723704183291,0.00049462,58198.0,58197.0,1.71727994]
[1723704184086,0.00049462,58198.0,58197.0,1.71927994]
[1723704184890,0.00049462,58198.0,58197.0,2.68984194]
[1723704185355,0.0002,58199.0,58198.0,1.325069]
[1723704185553,0.0002,58199.0,58198.0,2.63932354]
[1723704185754,0.0002,58199.0,58198.0,2.64132354]
[1723704185955,0.0002,58199.0,58198.0,2.39876554]
[1723704186155,0.0002,58199.0,58198.0,1.67876554]
[1723704186758,0.0002,58199.0,58198.0,1.69276554]
[1723704186962,0.0002,58199.0,58198.0,1.12750754]
[1723704187367,0.0002,58199.0,58198.0,1.14150754]
[1723704187976,0.0002,58199.0,58198.0,1.12750754]
[1723704188176,0.0002,58199.0,58198.0,1.11350754]
[1723704188382,0.0002,58199.0,58198.0,1.16450754]
[1723704188582,0.0002,58199.0,58198.0,1.33980754]
[1723704188831,0.0002,58199.0,58198.0,1.34180754]
[1723704189002,0.0002,58199.0,58198.0,2.31936554]
[1723704189435,0.0002,58199.0,58198.0,1.70936554]